fUSD/lending_fUSD_20260505
["ID","MTS","AMOUNT","RATE_DAILY","PERIOD"]
[421623323,1777985240000,-250.0,0.00020643,2]
[421623321,1777985240000,-302.27796956,0.0002,2]
[421623325,1777985240000,-207.53529149,0.000209,2]
[421623326,1777985240000,-382.53720808,0.00021,2]
[421623324,1777985240000,-158.49,0.00020643,2]
[421623328,1777985246000,-176.71608704,0.00021,2]
[421623327,1777985246000,-143.46279192,0.00021,2]
[421623329,1777985345000,-180.0,0.0002,2]
[421623333,1777985345000,-200.0,0.00021262,2]
[421623334,1777985345000,-200.0,0.00021262,2]
[421623331,1777985345000,-2959.01837671,0.00021262,2]
[421623332,1777985345000,-200.0,0.00021262,2]
[421623330,1777985345000,-300.0,0.00021261,2]
[421623335,1777985345000,-200.0,0.00021262,2]
[421623336,1777985345000,-200.0,0.00021262,2]
[421623338,1777985345000,-200.0,0.00021262,2]
[421623337,1777985345000,-200.0,0.00021262,2]
[421623339,1777985345000,-200.0,0.00021262,2]
[421623345,1777985345000,-353.6453,0.00021908,2]
[421623344,1777985345000,-226.3329,0.00021908,2]
[421623342,1777985345000,-410.0,0.00021907,2]
[421623343,1777985345000,-163.2698,0.00021908,2]
[421623341,1777985345000,-1200.0,0.00021907,2]
[421623348,1777985345000,-420.0,0.00023121,2]
[421623349,1777985345000,-251.60779758,0.00023127,2]
[421623347,1777985345000,-158.49,0.0002252,2]
[421623346,1777985345000,-200.0,0.0002205,2]
[421623350,1777985345000,-1137.45582571,0.0002392,2]
[421623340,1777985345000,-200.0,0.00021262,2]
[421623352,1777985355000,-179.0890318,0.00021,2]
[421623354,1777985360000,-200.0,0.00021262,2]
[421623357,1777985360000,-180.0,0.00022,2]
[421623358,1777985360000,-1347.57,0.0002205,2]
[421623356,1777985360000,-200.0,0.00021452,2]
[421623355,1777985360000,-200.0,0.00021262,2]
[421623361,1777985360000,-200.0,0.00023153,2]
[421623359,1777985360000,-200.0,0.00022302,2]
[421623360,1777985360000,-180.0,0.00023,2]
[421623353,1777985360000,-0.9109682,0.00021,2]
[421623362,1777985360000,-62.54417429,0.0002392,2]
[421623366,1777985360000,-353.6453,0.00024648,7]
[421623363,1777985360000,-180.0,0.00024,2]
[421623365,1777985360000,-290.24125769,0.000245,2]
[421623367,1777985360000,-353.6452,0.00024648,7]
[421623368,1777985360000,-150.0,0.00024658,2]
[421623369,1777985360000,-195.17728294,0.00025,2]
[421623371,1777985360000,-150.0,0.0002589,2]
[421623370,1777985360000,-587.0,0.00025144,2]
[421623373,1777985360000,-39.30678076,0.00026273,2]
[421623372,1777985360000,-160.18,0.00026248,2]
[421623364,1777985360000,-158.49,0.00024396,2]
[421623410,1777985432000,-158.49,0.00031903,2]
[421623409,1777985432000,-2000.0,0.00031808,30]
[421623406,1777985432000,-180.0,0.00031262,30]
[421623407,1777985432000,-161.0,0.00031262,30]
[421623402,1777985432000,-10359.5,0.0003062,2]
[421623404,1777985432000,-475.13650137,0.00030878,2]
[421623403,1777985432000,-250.82058975,0.0003067,2]
[421623408,1777985432000,-4215.29241252,0.00031708,2]
[421623400,1777985432000,-150.99,0.0003062,2]
[421623405,1777985432000,-172.03,0.00031238,30]
[421623414,1777985432000,-161.74607424,0.00032262,30]
[421623418,1777985432000,-2796.48,0.00032629,2]
[421623417,1777985432000,-1491.66,0.00032572,2]
[421623416,1777985432000,-500.0,0.00032552,2]
[421623419,1777985432000,-160.18,0.0003281,2]
[421623412,1777985432000,-172.03,0.00032061,30]
[421623422,1777985432000,-172.03,0.00032883,30]
[421623421,1777985432000,-240.4788,0.00032867,120]
[421623426,1777985432000,-180.0,0.00033262,30]
[421623425,1777985432000,-1000.0,0.00033243,120]
[421623424,1777985432000,-202.82097943,0.00033,120]
[421623427,1777985432000,-5000.0,0.00033452,60]
[421623423,1777985432000,-5000.0,0.00032904,60]
[421623420,1777985432000,-466.8117,0.00032867,120]
[421623415,1777985432000,-2000.0,0.00032356,30]
[421623413,1777985432000,-180.0,0.00032262,30]
[421623398,1777985432000,-151.0,0.00030602,2]
[421623401,1777985432000,-9999.99,0.0003062,2]
[421623429,1777985432000,-173.23,0.00033503,120]
[421623387,1777985432000,-253.30557958,0.000288,2]
[421623377,1777985432000,-173.78,0.00023153,2]
[421623378,1777985432000,-201.19,0.00024658,2]
[421623382,1777985432000,-240.4788,0.00027387,120]
[421623383,1777985432000,-158.49,0.00028149,2]
[421623386,1777985432000,-339.95478502,0.000288,2]
[421623379,1777985432000,-119.18321924,0.00026273,2]
[421623376,1777985432000,-500.0,0.00021162,2]
[421623380,1777985432000,-150.0,0.00027185,2]
[421623381,1777985432000,-466.8117,0.00027387,120]
[421623411,1777985432000,-202.82097943,0.00032,120]
[421623384,1777985432000,-150.0,0.00028544,2]
[421623388,1777985432000,-160.18,0.00029529,2]
[421623390,1777985432000,-158.49,0.00030026,2]
[421623391,1777985432000,-466.8117,0.00030127,120]
[421623389,1777985432000,-150.0,0.00029971,2]
[421623399,1777985432000,-241.32957162,0.00030602,2]
[421623392,1777985432000,-240.4788,0.00030127,120]
[421623397,1777985432000,-200.0,0.00030437,2]
[421623396,1777985432000,-260.03,0.00030437,2]
[421623395,1777985432000,-226.0,0.00030137,2]
[421623394,1777985432000,-200.0,0.00030137,2]
[421623393,1777985432000,-299.9,0.00030136,2]
[421623385,1777985432000,-509.0,0.000288,2]
[421623439,1777985432000,-180.0,0.00034262,30]
[421623449,1777985432000,-200.0,0.00035265,2]
[421623443,1777985432000,-1314.638,0.00034874,40]
[421623468,1777985432000,-2000.0,0.00036987,2]
[421623471,1777985432000,-180.0,0.00037262,30]
[421623459,1777985432000,-150.0,0.00035877,7]
[421623467,1777985432000,-12003.28,0.0003664,5]
[421623465,1777985432000,-180.0,0.00036262,30]
[421623463,1777985432000,-160.18,0.00036091,2]
[421623462,1777985432000,-150.0,0.00035877,7]
[421623464,1777985432000,-159.76,0.0003616,2]
[421623466,1777985432000,-152.0,0.00036399,3]
[421623472,1777985432000,-159.76,0.0003729,2]
[421623475,1777985432000,-1000.0,0.00037951,2]
[421623470,1777985432000,-150.0,0.00037205,7]
[421623474,1777985432000,-150.0,0.0003787,7]
[421623473,1777985432000,-150.0,0.0003787,7]
[421623477,1777985432000,-191.09474138,0.00037951,2]
[421623479,1777985432000,-284.14454834,0.00037951,7]
[421623480,1777985432000,-174.90454226,0.00037951,7]
[421623478,1777985432000,-335.47957646,0.00037951,7]
[421623485,1777985432000,-707.2905,0.00038346,120]
[421623483,1777985432000,-362.21241689,0.00038253,2]
[421623484,1777985432000,-300.0,0.00038253,2]
[421623482,1777985432000,-500.0,0.00038048,21]
[421623481,1777985432000,-500.0,0.00038048,21]
[421623486,1777985432000,-707.2905,0.00038346,120]
[421623476,1777985432000,-1000.0,0.00037951,2]
[421623460,1777985432000,-150.0,0.00035877,7]
[421623440,1777985432000,-172.03,0.00034527,30]
[421623469,1777985432000,-190.53878735,0.000372,120]
[421623461,1777985432000,-150.0,0.00035877,7]
[421623431,1777985432000,-172.03,0.00033705,30]
[421623441,1777985432000,-5000.0,0.00034548,60]
[421623436,1777985432000,-159.76,0.000339,2]
[421623435,1777985432000,-158.49,0.00033779,2]
[421623434,1777985432000,-10007.45,0.00033726,2]
[421623433,1777985432000,-166.97,0.00033722,2]
[421623438,1777985432000,-386.53,0.0003425,2]
[421623437,1777985432000,-5000.0,0.00034,60]
[421623445,1777985432000,-159.76,0.0003503,2]
[421623444,1777985432000,-182.494,0.00034874,40]
[421623447,1777985432000,-180.57,0.00035159,120]
[421623442,1777985432000,-43439.2331,0.00034767,2]
[421623457,1777985432000,-150.0,0.00035877,7]
[421623446,1777985432000,-5000.0,0.00035096,60]
[421623458,1777985432000,-150.0,0.00035877,7]
[421623487,1777985432000,-323.65566026,0.00038492,2]
[421623456,1777985432000,-150.00000001,0.00035877,7]
[421623448,1777985432000,-180.0,0.00035262,30]
[421623454,1777985432000,-150.0,0.00035877,30]
[421623452,1777985432000,-707.2905,0.00035606,120]
[421623453,1777985432000,-2671.09,0.00035644,60]
[421623455,1777985432000,-150.0,0.00035877,7]
[421623450,1777985432000,-1000.0,0.00035292,2]
[421623451,1777985432000,-707.2905,0.00035606,120]
[421623499,1777985433000,-185928.18287179,0.000395,2]
[421623502,1777985433000,-28153.23497351,0.000395,2]
[421623507,1777985433000,-242.0,0.000395,2]
[421623506,1777985433000,-8213.12050997,0.000395,2]
[421623508,1777985433000,-2500.0,0.00039511,2]
[421623504,1777985433000,-2218.27255524,0.000395,2]
[421623503,1777985433000,-4382.19557106,0.000395,2]
[421623500,1777985433000,-6491.07,0.000395,2]
[421623501,1777985433000,-41476.23565163,0.000395,2]
[421623493,1777985433000,-2000.0,0.0003929,112]
[421623491,1777985433000,-6075.9634887,0.00039147,2]
[421623494,1777985433000,-160.18,0.00039372,2]
[421623492,1777985433000,-2000.0,0.0003929,112]
[421623490,1777985433000,-381.13,0.000391,120]
[421623489,1777985433000,-501.0,0.0003874,2]
[421623488,1777985433000,-150.0,0.00038534,7]
[421623497,1777985433000,-649.06283483,0.00039484,2]
[421623496,1777985433000,-539.0,0.00039402,30]
[421623495,1777985433000,-849.0,0.00039402,30]
[421623510,1777985433000,-649.06283478,0.00039576,2]
[421623498,1777985433000,-28621.64645382,0.000395,2]
[421623509,1777985433000,-649.06283478,0.0003953,2]
[421623505,1777985433000,-5532.0,0.000395,2]
[421623511,1777985433000,-5000.0,0.00039584,2]
[421623512,1777985433000,-176.7715329,0.00039584,2]
[421623534,1777985433000,-2914.68252459,0.00039684,30]
[421623531,1777985433000,-2373.75181457,0.00039684,30]
[421623533,1777985433000,-2168.09710004,0.00039684,30]
[421623530,1777985433000,-9730.71764817,0.00039684,30]
[421623532,1777985433000,-374.94758386,0.00039684,30]
[421623529,1777985433000,-13737.95634543,0.00039684,30]
[421623528,1777985433000,-400.0,0.00039684,2]
[421623527,1777985433000,-157.0,0.00039683,5]
[421623525,1777985433000,-2000.0,0.00039682,116]
[421623526,1777985433000,-447.85151678,0.00039683,10]
[421623521,1777985433000,-186.82710922,0.00039674,2]
[421623520,1777985433000,-649.06283478,0.00039669,2]
[421623523,1777985433000,-2000.0,0.00039682,116]
[421623513,1777985433000,-215.49012475,0.00039584,2]
[421623514,1777985433000,-160.0,0.000396,72]
[421623515,1777985433000,-160.0,0.000396,72]
[421623522,1777985433000,-2000.0,0.00039682,116]
[421623524,1777985433000,-2000.0,0.00039682,116]
[421623519,1777985433000,-215.4901247,0.00039654,2]
[421623516,1777985433000,-151.0,0.00039611,2]
[421623518,1777985433000,-649.06283478,0.00039623,2]
[421623517,1777985433000,-215.4901247,0.00039619,2]
[421623543,1777985438000,-580.23789574,0.00039684,30]
[421623542,1777985438000,-6696.53048938,0.00039684,30]
[421623541,1777985438000,-1361.60035678,0.00039684,30]
[421623540,1777985438000,-548.19226322,0.00039684,30]
[421623539,1777985438000,-928.0,0.00039102,2]
[421623537,1777985438000,-215.77044018,0.00038492,2]
[421623538,1777985438000,-1777.74,0.00038817,2]
[421623548,1777985440000,-1139.12505832,0.00039684,30]
[421623549,1777985440000,-2504.82161894,0.00039684,30]
[421623547,1777985440000,-914.93,0.00039684,30]
[421623613,1777985443000,-1415.239929,0.00039684,30]
[421623609,1777985443000,-200.0,0.00038828,2]
[421623610,1777985443000,-60.0,0.00039684,30]
[421623608,1777985443000,-527.0,0.00021,2]
[421623611,1777985443000,-29433.30065692,0.00039684,30]
[421623612,1777985443000,-107.25698053,0.00039684,30]
[421623617,1777985446000,-1261.62312994,0.00039684,30]
[421623619,1777985446000,-1029.15502118,0.00039684,30]
[421623618,1777985446000,-1249.69611571,0.00039684,30]
[421623616,1777985446000,-154.0,0.00039684,5]
[421623620,1777985446000,-152.0,0.00038638,7]
[421623622,1777985446000,-8994.83348315,0.00039684,30]
[421623623,1777985446000,-5532.0,0.00039684,30]
[421623624,1777985446000,-3343.25418622,0.00039684,30]
[421623621,1777985446000,-22131.97338059,0.00039684,30]
[421623625,1777985447000,-4281.59940127,0.00039684,30]
[421623642,1777985723000,4110.26,0.00017691,2]
[421623644,1777986044000,150.0,0.000164,2]
[421623645,1777986044000,213.0,0.000164,2]
[421623646,1777986045000,302.46,0.000164,2]
[421623647,1777986046000,356.17741925,0.000164,2]
[421623655,1777986339000,-495.63894246,0.00020951,2]
[421623653,1777986339000,-283.42,0.0002022,2]
[421623654,1777986339000,-500.0,0.00020851,2]
[421623652,1777986339000,-283.42,0.00019209,2]
[421623656,1777986402000,205.0,0.00016,2]
[421623657,1777986434000,-290.76582163,0.000191,2]
[421623659,1777986454000,-273.1474308,0.00019109,2]
[421623658,1777986454000,-218.23417837,0.000191,2]
[421623661,1777986547000,-153.7357692,0.00019109,2]
[421623662,1777986547000,-500.0,0.0002095,2]
[421623665,1777986547000,-283.42,0.00021231,2]
[421623664,1777986547000,-286.93874055,0.0002102,2]
[421623663,1777986547000,-519.0,0.00021,2]
[421623670,1777986547000,-300.0,0.00024252,2]
[421623667,1777986547000,-1006.39,0.00022562,2]
[421623668,1777986547000,-283.42,0.00023253,2]
[421623669,1777986547000,-453.0,0.00024252,2]
[421623671,1777986547000,-8601.61721402,0.00024253,2]
[421623666,1777986547000,-283.42,0.00022242,2]
[421623675,1777986553000,-265.81849488,0.000245,2]
[421623674,1777986553000,-283.42,0.00024264,2]
[421623673,1777986553000,-7.77780991,0.00024253,2]
[421623676,1777986557000,-9.91069993,0.000245,2]
[421623677,1777986557000,-327.79665594,0.000245,2]
[421623679,1777986571000,-165.9042,0.000245,2]
[421623726,1777986631000,-200.0,0.00032853,2]
[421623711,1777986631000,-283.42,0.00028308,2]
[421623724,1777986631000,-283.42,0.00032351,2]
[421623722,1777986631000,-3254.75909477,0.00032074,2]
[421623723,1777986631000,-160.0,0.00032263,30]
[421623731,1777986631000,-200.0,0.00033216,2]
[421623721,1777986631000,-643.36812121,0.000318,2]
[421623713,1777986631000,-441.97,0.0003,2]
[421623715,1777986631000,-283.42,0.00030329,2]
[421623714,1777986631000,-2008.98531558,0.00030314,2]
[421623717,1777986631000,-158.0,0.00031263,30]
[421623716,1777986631000,-150.99,0.0003062,2]
[421623712,1777986631000,-283.42,0.00029318,2]
[421623728,1777986631000,-616.34,0.00033073,2]
[421623725,1777986631000,-198.53,0.00032616,2]
[421623703,1777986631000,-416.34770103,0.00024737,2]
[421623710,1777986631000,-283.42,0.00027297,2]
[421623707,1777986631000,-539.57245357,0.00026264,2]
[421623720,1777986631000,-643.36812121,0.000318,2]
[421623718,1777986631000,-283.42,0.0003134,2]
[421623708,1777986631000,-283.42,0.00026286,2]
[421623705,1777986631000,-283.42,0.00025275,2]
[421623727,1777986631000,-218.58,0.00032885,2]
[421623704,1777986631000,-1800.0,0.00025,2]
[421623702,1777986631000,-150.0,0.00024658,2]
[421623701,1777986631000,-240.55590337,0.000245,2]
[421623697,1777986631000,-59.44409663,0.000245,2]
[421623695,1777986631000,-50.29914406,0.000245,2]
[421623706,1777986631000,-1981.0,0.00026,3]
[421623693,1777986631000,-341.54086,0.00021,2]
[421623709,1777986631000,-150.53,0.00026397,2]
[421623729,1777986631000,-1422.19,0.0003317,2]
[421623719,1777986631000,-400.0,0.00031799,2]
[421623733,1777986631000,-3459.06,0.00033324,2]
[421623751,1777986631000,-1422.19,0.00037316,2]
[421623753,1777986631000,-3624.0,0.00037601,2]
[421623754,1777986631000,-928.0,0.00037601,2]
[421623752,1777986631000,-283.42,0.00037406,2]
[421623756,1777986631000,-4304.42937654,0.00038,6]
[421623757,1777986631000,-603.83,0.00038034,30]
[421623749,1777986631000,-365.82910313,0.000359,30]
[421623760,1777986631000,-500.0,0.00038048,21]
[421623762,1777986631000,-500.0,0.00038048,21]
[421623763,1777986631000,-283.42,0.00038417,2]
[421623765,1777986631000,-1470.11811,0.0003878,106]
[421623768,1777986631000,-1470.11811,0.0003878,106]
[421623769,1777986631000,-1222.63711683,0.00038999,2]
[421623730,1777986631000,-613.24800925,0.00033193,2]
[421623764,1777986631000,-1470.11811,0.0003878,106]
[421623750,1777986631000,-283.42,0.00036395,2]
[421623767,1777986631000,-1470.11811,0.0003878,106]
[421623748,1777986631000,-193.02,0.00035877,30]
[421623743,1777986631000,-150.0,0.00035877,7]
[421623745,1777986631000,-150.0,0.00035877,7]
[421623732,1777986631000,-1479.16,0.00033302,2]
[421623735,1777986631000,-440.0,0.00034209,2]
[421623736,1777986631000,-283.42,0.00034373,2]
[421623737,1777986631000,-1000.0,0.00034469,2]
[421623740,1777986631000,-283.42,0.00035384,2]
[421623734,1777986631000,-283.42,0.00033362,2]
[421623741,1777986631000,-150.0,0.00035877,30]
[421623739,1777986631000,-1051.711,0.00034874,40]
[421623747,1777986631000,-150.0,0.00035877,7]
[421623738,1777986631000,-182.49409655,0.00034874,40]
[421623744,1777986631000,-150.0,0.00035877,7]
[421623742,1777986631000,-150.0,0.00035877,7]
[421623746,1777986631000,-150.0,0.00035877,7]
[421623805,1777986632000,-500.0,0.00039403,15]
[421623804,1777986632000,-500.0,0.00039403,15]
[421623810,1777986632000,-500.0,0.00039403,15]
[421623811,1777986632000,-500.0,0.00039403,15]
[421623803,1777986632000,-500.0,0.00039403,15]
[421623800,1777986632000,-500.0,0.00039403,15]
[421623799,1777986632000,-500.0,0.00039403,15]
[421623806,1777986632000,-500.0,0.00039403,15]
[421623797,1777986632000,-500.0,0.00039403,15]
[421623801,1777986632000,-500.0,0.00039403,15]
[421623802,1777986632000,-500.0,0.00039403,15]
[421623824,1777986632000,-500.0,0.00039403,15]
[421623808,1777986632000,-500.0,0.00039403,15]
[421623807,1777986632000,-500.0,0.00039403,15]
[421623809,1777986632000,-500.0,0.00039403,15]
[421623812,1777986632000,-500.0,0.00039403,15]
[421623814,1777986632000,-500.0,0.00039403,15]
[421623816,1777986632000,-500.0,0.00039403,15]
[421623815,1777986632000,-500.0,0.00039403,15]
[421623813,1777986632000,-300.0,0.00039403,15]
[421623817,1777986632000,-500.0,0.00039403,15]
[421623818,1777986632000,-500.0,0.00039403,15]
[421623794,1777986632000,-205.0,0.00039403,15]
[421623820,1777986632000,-500.0,0.00039403,15]
[421623795,1777986632000,-500.0,0.00039403,15]
[421623783,1777986632000,-500.0,0.00039403,15]
[421623793,1777986632000,-500.0,0.00039403,15]
[421623770,1777986632000,-28924.56831971,0.00039,2]
[421623771,1777986632000,-48107.2308,0.00039104,2]
[421623772,1777986632000,-150.992,0.0003912,2]
[421623774,1777986632000,-1470.11811,0.00039175,110]
[421623773,1777986632000,-150.0,0.0003912,2]
[421623775,1777986632000,-1470.11811,0.00039175,110]
[421623777,1777986632000,-2500.0,0.00039304,2]
[421623782,1777986632000,-500.0,0.00039403,15]
[421623779,1777986632000,-1940.89681744,0.00039338,2]
[421623780,1777986632000,-150.84308729,0.000394,2]
[421623781,1777986632000,-500.0,0.00039403,15]
[421623787,1777986632000,-500.0,0.00039403,15]
[421623785,1777986632000,-500.0,0.00039403,15]
[421623776,1777986632000,-4396.902,0.00039204,2]
[421623778,1777986632000,-150.84308729,0.00039338,2]
[421623784,1777986632000,-500.0,0.00039403,15]
[421623786,1777986632000,-500.0,0.00039403,15]
[421623789,1777986632000,-500.0,0.00039403,15]
[421623788,1777986632000,-500.0,0.00039403,15]
[421623790,1777986632000,-500.0,0.00039403,15]
[421623792,1777986632000,-500.0,0.00039403,15]
[421623791,1777986632000,-500.0,0.00039403,15]
[421623798,1777986632000,-500.0,0.00039403,15]
[421623796,1777986632000,-500.0,0.00039403,15]
[421623821,1777986632000,-500.0,0.00039403,15]
[421623831,1777986632000,-500.0,0.00039403,15]
[421623823,1777986632000,-500.0,0.00039403,15]
[421623853,1777986632000,-500.0,0.00039403,15]
[421623822,1777986632000,-500.0,0.00039403,15]
[421623856,1777986632000,-396.16956455,0.00039403,15]
[421623854,1777986632000,-500.0,0.00039403,15]
[421623852,1777986632000,-286.72056509,0.00039403,15]
[421623863,1777986632000,-500.0,0.00039403,15]
[421623858,1777986632000,-465.90794738,0.00039403,15]
[421623859,1777986632000,-500.0,0.00039403,15]
[421623861,1777986632000,-500.0,0.00039403,15]
[421623860,1777986632000,-500.0,0.00039403,15]
[421623862,1777986632000,-263.01505312,0.00039403,15]
[421623857,1777986632000,-500.0,0.00039403,15]
[421623865,1777986632000,-349.70613465,0.00039403,15]
[421623864,1777986632000,-500.0,0.00039403,15]
[421623868,1777986632000,-20282.4177376,0.00039404,48]
[421623870,1777986632000,-114215.5222479,0.00039404,2]
[421623867,1777986632000,-500.0,0.00039403,15]
[421623871,1777986632000,-67219.09496142,0.00039404,2]
[421623866,1777986632000,-500.0,0.00039403,15]
[421623873,1777986632000,-1254.41808677,0.00039404,2]
[421623872,1777986632000,-25512.31211588,0.00039404,2]
[421623869,1777986632000,-229266.48760497,0.00039404,2]
[421623874,1777986632000,-299.70681413,0.00039404,2]
[421623851,1777986632000,-500.0,0.00039403,15]
[421623844,1777986632000,-500.0,0.00039403,15]
[421623855,1777986632000,-500.0,0.00039403,15]
[421623848,1777986632000,-500.0,0.00039403,15]
[421623819,1777986632000,-500.0,0.00039403,15]
[421623825,1777986632000,-500.0,0.00039403,15]
[421623826,1777986632000,-500.0,0.00039403,15]
[421623827,1777986632000,-500.0,0.00039403,15]
[421623828,1777986632000,-500.0,0.00039403,15]
[421623838,1777986632000,-500.0,0.00039403,15]
[421623829,1777986632000,-567.33708275,0.00039403,15]
[421623835,1777986632000,-500.0,0.00039403,15]
[421623843,1777986632000,-500.0,0.00039403,15]
[421623830,1777986632000,-500.0,0.00039403,15]
[421623836,1777986632000,-500.0,0.00039403,15]
[421623837,1777986632000,-600.0,0.00039403,15]
[421623832,1777986632000,-602.90243908,0.00039403,15]
[421623850,1777986632000,-500.0,0.00039403,15]
[421623834,1777986632000,-500.0,0.00039403,15]
[421623842,1777986632000,-500.0,0.00039403,15]
[421623849,1777986632000,-176.38465683,0.00039403,15]
[421623846,1777986632000,-500.0,0.00039403,15]
[421623841,1777986632000,-500.0,0.00039403,15]
[421623845,1777986632000,-500.0,0.00039403,15]
[421623839,1777986632000,-500.0,0.00039403,15]
[421623840,1777986632000,-500.0,0.00039403,15]
[421623833,1777986632000,-500.0,0.00039403,15]
[421623847,1777986632000,-500.0,0.00039403,15]
[421623879,1777986633000,-448.71589931,0.00039404,2]
[421623880,1777986633000,-675.352,0.00039404,2]
[421623878,1777986633000,-5741.15775267,0.00039404,2]
[421623876,1777986633000,-1117.14414,0.00039404,2]
[421623877,1777986633000,-1652.648,0.00039404,2]
[421623875,1777986633000,-3441.18492892,0.00039404,2]
[421623886,1777986637000,-676.01876058,0.00039404,2]
[421623885,1777986637000,-179.98,0.00024658,2]
[421623888,1777986637000,-304.0,0.00039404,2]
[421623887,1777986637000,-1556.83808154,0.00039404,2]
[421623898,1777986639000,-1515.4,0.00039404,2]
[421623897,1777986639000,-1002.22715677,0.00039404,2]
[421623900,1777986640000,-278.13475819,0.00039404,2]
[421623899,1777986640000,-650.4944148,0.00039404,2]
[421623915,1777986642000,-191.75,0.00039384,2]
[421623917,1777986642000,-1596.0,0.00039438,11]
[421623916,1777986642000,-40208.58327615,0.00039404,2]
[421623918,1777986642000,-150.84308729,0.00039463,2]
[421623919,1777986642000,-500.0,0.00039473,5]
[421623921,1777986642000,-639975.54111416,0.000395,2]
[421623920,1777986642000,-534.6766,0.00039484,2]
[421623922,1777986642000,-28685.88156922,0.000395,2]
[421623923,1777986642000,-432614.73372983,0.000395,2]
[421623924,1777986642000,-54591.34880978,0.000395,2]
[421623927,1777986643000,-8033.39607436,0.000395,2]
[421623928,1777986643000,-11845.98439025,0.000395,2]
[421623946,1777986645000,-5768.0,0.000395,2]
[421623948,1777986645000,-325.2807096,0.000395,2]
[421623947,1777986645000,-14691.22343,0.000395,2]
[421623952,1777986645000,-241.84137075,0.00039546,60]
[421623949,1777986645000,-38933.1817275,0.00039504,2]
[421623953,1777986645000,-5000.0,0.00039587,2]
[421623951,1777986645000,-150.84308729,0.00039525,2]
[421623950,1777986645000,-1192.783281,0.00039504,2]
[421623960,1777986646000,-150.84308729,0.0003965,2]
[421623955,1777986646000,-176.77153288,0.00039592,2]
[421623954,1777986646000,-150.84308729,0.00039588,2]
[421623956,1777986646000,-335.90903432,0.00039592,2]
[421623957,1777986646000,-160.0,0.000396,72]
[421623958,1777986646000,-160.0,0.000396,72]
[421623959,1777986646000,-313.0,0.000396,2]
[421623966,1777986646000,-151.0,0.00039687,30]
[421623967,1777986646000,-244.04997,0.00039687,30]
[421623968,1777986646000,-244.04997,0.00039687,30]
[421623969,1777986646000,-244.04997,0.00039687,30]
[421623972,1777986646000,-178.248202,0.00039687,30]
[421623961,1777986646000,-186.82710923,0.00039677,2]
[421623963,1777986646000,-215.77044018,0.00039684,2]
[421623962,1777986646000,-150.0,0.00039683,120]
[421623965,1777986646000,-204.531744,0.00039687,28]
[421623964,1777986646000,-150.0,0.00039686,5]
[421623971,1777986646000,-151.0,0.00039687,7]
[421623974,1777986646000,-1223.97154758,0.00039687,30]
[421623973,1777986646000,-306550.56558853,0.00039687,30]
[421623975,1777986646000,-652.54952521,0.00039687,30]
[421623976,1777986646000,-1587.214512,0.00039687,30]
[421623970,1777986646000,-244.04997,0.00039687,30]
[421624023,1777986699000,8119.0,0.00024,30]
[421624025,1777986838000,10000.0,0.00024,30]
[421624027,1777987243000,273223.0,0.00024,30]
[421624036,1777987547000,-81.02422626,0.00020264,2]
[421624035,1777987547000,-153.99,0.00020264,2]
[421624034,1777987547000,-153.99,0.00018421,2]
[421624039,1777987628000,-517.0,0.00021,2]
[421624038,1777987628000,-159.40005316,0.00020264,2]